fUSD/lending_fUSD_20260208
["ID","MTS","AMOUNT","RATE_DAILY","PERIOD"]
[404780988,1770542136280,150.0,0.00035342,30]
[404780989,1770542136329,504.33603068,0.00035397,30]
[404780990,1770542136429,150.0,0.00035397,30]
[404780991,1770542136579,242.18558321,0.00035452,30]
[404780995,1770542215822,383.98499971,0.00028147,30]
[404780996,1770542263573,168.0,0.00034521,30]
[404780999,1770542346270,151.0,0.00033,31]
[404781000,1770542346560,151.0,0.0003525,31]
[404781001,1770542347283,151.0,0.00033,31]
[404781002,1770542347585,151.0,0.0003525,31]
[404781003,1770542348809,151.0,0.00033,31]
[404781004,1770542349112,151.0,0.0003525,31]
[404781005,1770542350801,433.711834,0.00033,31]
[404781006,1770542351086,433.711834,0.0003525,31]
[404781007,1770542352262,433.711834,0.00033,31]
[404781008,1770542352584,433.711834,0.0003525,31]
[404781009,1770542353768,433.711834,0.00033,31]
[404781010,1770542354061,433.711834,0.0003525,31]
[404781011,1770542355308,433.711834,0.00033,31]
[404781012,1770542355609,433.711834,0.0003525,31]
[404781013,1770542365774,150.0,0.00035342,30]
[404781014,1770542365922,150.0,0.00035397,30]
[404781015,1770542366077,200.0,0.00035452,30]
[404781016,1770542366512,150.0,0.00035342,30]
[404781017,1770542366660,150.0,0.00035397,30]
[404781018,1770542366808,200.0,0.00035452,30]
[404781019,1770542367264,500.0,0.00035342,30]
[404781020,1770542367324,629.0,0.00035397,30]
[404781021,1770542368602,150.0,0.00035342,30]
[404781022,1770542368648,150.0,0.00035342,30]
[404781023,1770542368693,500.0,0.00035342,30]
[404781024,1770542368747,150.0,0.00035397,30]
[404781025,1770542368783,150.0,0.00035397,30]
[404781026,1770542368827,500.0,0.00035397,30]
[404781027,1770542368863,298.5901243,0.00035342,30]
[404781028,1770542368900,150.0,0.00035342,30]
[404781029,1770542368940,206.31341037,0.00035452,30]
[404781030,1770542368978,150.67173704,0.00035452,30]
[404781031,1770542369027,265.92034949,0.00035452,30]
[404781032,1770542369074,150.0,0.00035397,30]
[404781033,1770542369177,150.43427366,0.00035452,30]
[404781034,1770542369373,150.0,0.00035342,30]
[404781035,1770542369529,150.0,0.00035397,30]
[404781036,1770542369679,208.82733922,0.00035452,30]
[404781037,1770542423478,200.0,0.00027947,30]
[404781039,1770542459367,547.91380347,0.00028047,30]
[404781042,1770542471138,559.34492563,0.00028047,30]
[404781043,1770542497038,500.0,0.00028047,30]
[404781044,1770542497264,500.0,0.00028047,30]
[404781045,1770542497500,500.0,0.00028047,30]
[404781046,1770542497728,500.0,0.00028047,30]
[404781047,1770542497951,500.0,0.00028047,30]
[404781048,1770542498182,500.0,0.00028047,30]
[404781049,1770542498421,500.0,0.00028047,30]
[404781050,1770542498659,500.0,0.00028047,30]
[404781051,1770542498900,500.0,0.00028047,30]
[404781052,1770542499126,500.0,0.00028047,30]
[404781053,1770542499362,500.0,0.00028047,30]
[404781054,1770542499604,500.0,0.00028047,30]
[404781055,1770542499833,500.0,0.00028047,30]
[404781056,1770542500064,500.0,0.00028047,30]
[404781057,1770542500315,577.64950078,0.00028697,30]
[404781058,1770542505819,151.0,0.00033428,31]
[404781059,1770542506135,151.0,0.0003525,31]
[404781061,1770542544297,777.574925,0.00033428,31]
[404781062,1770542544613,777.574925,0.0003525,31]
[404781063,1770542545883,777.574925,0.00033428,31]
[404781064,1770542546184,777.574925,0.0003525,31]
[404781065,1770542547020,151.0,0.00033428,31]
[404781066,1770542547334,151.0,0.0003525,31]
[404781067,1770542547495,777.574925,0.00033428,31]
[404781068,1770542547815,777.574925,0.0003525,31]
[404781069,1770542549410,777.574925,0.00033428,31]
[404781070,1770542549948,777.574925,0.0003525,31]
[404781071,1770542550675,181.343333,0.00033428,31]
[404781072,1770542550990,181.343333,0.0003525,31]
[404781073,1770542552280,181.343333,0.00033428,31]
[404781074,1770542552448,181.343333,0.0003525,31]
[404781075,1770542553659,181.343333,0.00033428,31]
[404781076,1770542553960,181.343333,0.0003525,31]
[404781077,1770542555566,181.343333,0.00033428,31]
[404781078,1770542555922,181.343333,0.0003525,31]
[404781083,1770542602531,151.0,0.00034888,31]
[404781084,1770542602872,151.0,0.0003525,31]
[404781085,1770542604085,151.0,0.00034888,31]
[404781086,1770542604372,151.0,0.0003525,31]
[404781087,1770542608281,500.0,0.00035342,30]
[404781088,1770542608444,500.0,0.00035397,30]
[404781089,1770542608631,500.0,0.00035452,30]
[404781090,1770542608799,500.0,0.00035506,30]
[404781091,1770542608871,151.0,0.00034888,30]
[404781092,1770542609000,500.0,0.00035342,30]
[404781093,1770542609044,500.0,0.00035561,30]
[404781094,1770542609161,500.0,0.00035397,30]
[404781095,1770542609205,502.89081913,0.00035616,30]
[404781096,1770542609249,151.0,0.0003525,30]
[404781097,1770542609292,500.0,0.00035342,30]
[404781098,1770542609338,500.0,0.00035342,30]
[404781099,1770542609384,500.0,0.00035342,30]
[404781100,1770542609435,500.0,0.00035397,30]
[404781101,1770542609481,500.0,0.00035342,30]
[404781102,1770542609524,500.0,0.00035397,30]
[404781103,1770542609573,500.0,0.00035397,30]
[404781104,1770542609618,500.0,0.00035452,30]
[404781105,1770542609662,500.0,0.00035452,30]
[404781106,1770542609709,500.0,0.00035397,30]
[404781107,1770542609753,500.0,0.00035452,30]
[404781108,1770542609800,500.0,0.00035452,30]
[404781109,1770542609850,500.0,0.00035506,30]
[404781110,1770542609893,500.0,0.00035506,30]
[404781111,1770542609937,500.0,0.00035452,30]
[404781112,1770542609992,500.0,0.00035506,30]
[404781113,1770542610037,500.0,0.00035506,30]
[404781114,1770542610087,500.0,0.00035561,30]
[404781115,1770542610134,500.0,0.00035561,30]
[404781116,1770542610176,500.0,0.00035506,30]
[404781117,1770542610217,500.0,0.00035561,30]
[404781118,1770542610260,500.0,0.00035561,30]
[404781119,1770542610305,500.0,0.00035616,30]
[404781120,1770542610347,500.0,0.00035616,30]
[404781121,1770542610398,500.0,0.00035616,30]
[404781122,1770542610442,500.0,0.00035561,30]
[404781123,1770542610485,500.0,0.00035616,30]
[404781124,1770542610540,500.0,0.00035616,30]
[404781125,1770542610590,151.0,0.00034888,30]
[404781126,1770542610706,151.0,0.0003525,30]
[404781127,1770542611927,151.0,0.00034888,30]
[404781128,1770542612055,151.0,0.00034888,31]
[404781129,1770542612221,151.0,0.0003525,30]
[404781130,1770542612371,151.0,0.0003525,31]
[404781131,1770542613600,151.0,0.00034888,31]
[404781132,1770542613891,151.0,0.0003525,31]
[404781133,1770542615066,151.0,0.00034888,31]
[404781134,1770542615357,151.0,0.0003525,31]
[404781135,1770542616606,151.0,0.00034888,31]
[404781136,1770542616896,151.0,0.0003525,31]
[404781137,1770542646290,151.0,0.00034888,31]
[404781138,1770542646593,151.0,0.0003525,31]
[404781139,1770542646959,300.99266181,0.00035616,30]
[404781140,1770542647771,586.619715,0.00034888,31]
[404781141,1770542647826,151.0,0.00034888,31]
[404781142,1770542648065,586.619715,0.0003525,31]
[404781143,1770542648119,151.0,0.0003525,31]
[404781144,1770542649261,586.619715,0.00034888,31]
[404781145,1770542649545,151.0,0.00034888,31]
[404781146,1770542649589,586.619715,0.0003525,31]
[404781147,1770542649824,151.0,0.0003525,31]
[404781148,1770542650818,586.619715,0.00034888,31]
[404781149,1770542650973,151.0,0.00034888,31]
[404781150,1770542651108,586.619715,0.0003525,31]
[404781151,1770542651263,151.0,0.0003525,31]
[404781152,1770542652293,586.619715,0.00034888,31]
[404781153,1770542652590,586.619715,0.0003525,31]
[404781154,1770542678225,252.721836,0.00033428,31]
[404781155,1770542678546,252.721836,0.0003526,31]
[404781156,1770542680014,252.721836,0.00033428,31]
[404781157,1770542680356,252.721836,0.0003526,31]
[404781158,1770542681599,252.721836,0.00033428,31]
[404781159,1770542681887,252.721836,0.0003526,31]
[404781160,1770542683060,252.721836,0.00033428,31]
[404781161,1770542683355,252.721836,0.0003526,31]
[404781162,1770542707704,12657.44821797,0.00018,2]
[404781163,1770542707736,50000.0,0.00018,2]
[404781164,1770542707762,27773.83050395,0.00018,2]
[404781165,1770542712445,500.0,0.00035342,30]
[404781166,1770542712607,550.58242297,0.00035397,30]
[404781167,1770542713066,500.0,0.00035342,30]
[404781168,1770542713198,500.0,0.00035397,30]
[404781169,1770542713372,500.0,0.00035452,30]
[404781170,1770542713648,611.0,0.00035342,30]
[404781171,1770542713711,500.0,0.00035506,30]
[404781172,1770542713766,200.0,0.00035342,30]
[404781173,1770542713828,200.0,0.00035397,30]
[404781174,1770542713891,500.0,0.00035561,30]
[404781175,1770542713937,611.0,0.00035397,30]
[404781176,1770542713991,200.0,0.00035452,30]
[404781177,1770542714042,500.0,0.00035616,30]
[404781178,1770542714096,611.0,0.00035452,30]
[404781179,1770542714154,200.0,0.00035506,30]
[404781180,1770542714222,611.0,0.00035506,30]
[404781181,1770542714279,200.0,0.00035561,30]
[404781182,1770542714331,611.0,0.00035561,30]
[404781183,1770542714393,200.0,0.00035616,30]
[404781184,1770542714465,611.0,0.00035616,30]
[404781185,1770542714583,500.0,0.00035342,30]
[404781186,1770542714905,500.0,0.00035397,30]
[404781187,1770542715046,500.0,0.00035452,30]
[404781188,1770542715203,500.0,0.00035506,30]
[404781189,1770542715350,508.11151436,0.00035561,30]
[404781190,1770542715461,450.0,0.00035342,30]
[404781191,1770542715603,500.0,0.00035342,30]
[404781192,1770542715674,450.0,0.00035397,30]
[404781193,1770542715745,500.0,0.00035397,30]
[404781194,1770542715793,500.0,0.00035342,30]
[404781195,1770542715846,450.0,0.00035452,30]
[404781196,1770542715909,500.0,0.00035397,30]
[404781197,1770542715954,500.0,0.00035452,30]
[404781198,1770542716012,450.0,0.00035506,30]
[404781199,1770542716065,500.0,0.00035342,30]
[404781200,1770542716118,500.0,0.00035452,30]
[404781201,1770542716168,526.17810022,0.00035506,30]
[404781202,1770542716215,450.0,0.00035561,30]
[404781203,1770542716266,500.0,0.00035397,30]
[404781204,1770542716328,500.0,0.00035506,30]
[404781205,1770542716381,450.0,0.00035616,30]
[404781206,1770542716432,355.22409798,0.00035452,30]
[404781207,1770542716485,500.0,0.00035561,30]
[404781208,1770542716541,500.0,0.00035616,30]
[404781209,1770542717062,506.0,0.00035342,30]
[404781210,1770542717298,506.0,0.00035397,30]
[404781211,1770542717444,506.0,0.00035452,30]
[404781212,1770542717625,506.0,0.00035506,30]
[404781213,1770542717781,506.0,0.00035561,30]
[404781214,1770542717936,506.0,0.00035616,30]
[404781215,1770542719338,150.0,0.00035342,30]
[404781216,1770542719481,150.0,0.00035397,30]
[404781217,1770542719627,150.0,0.00035452,30]
[404781218,1770542719781,150.0,0.00035506,30]
[404781219,1770542720166,297.64699965,0.00035561,30]
[404781220,1770542720233,150.0,0.00035342,30]
[404781221,1770542720304,150.0,0.00035397,30]
[404781222,1770542720362,150.0,0.00035452,30]
[404781223,1770542720522,200.59270043,0.00035506,30]
[404781224,1770542720614,490.0,0.00035342,30]
[404781225,1770542720856,490.0,0.00035397,30]
[404781226,1770542721001,490.0,0.00035452,30]
[404781227,1770542721140,150.0,0.00035342,30]
[404781228,1770542721186,490.0,0.00035506,30]
[404781229,1770542721314,490.0,0.00035561,30]
[404781230,1770542721360,150.0,0.00035397,30]
[404781231,1770542721476,200.0,0.00035452,30]
[404781232,1770542722145,500.0,0.00035342,30]
[404781233,1770542722300,500.0,0.00035397,30]
[404781234,1770542722346,490.0,0.00035616,30]
[404781235,1770542722482,500.0,0.00035452,30]
[404781236,1770542723446,500.0,0.00035506,30]
[404781237,1770542723516,500.0,0.00035561,30]
[404781238,1770542723578,500.0,0.00035616,30]
[404781239,1770542726225,595.0,0.00035342,30]
[404781240,1770542726384,595.0,0.00035397,30]
[404781241,1770542726699,595.0,0.00035452,30]
[404781242,1770542726922,595.0,0.00035506,30]
[404781243,1770542727024,595.0,0.00035561,30]
[404781244,1770542727180,595.0,0.00035616,30]
[404781245,1770542728622,151.0,0.00034371,31]
[404781246,1770542728940,151.0,0.0003526,31]
[404781247,1770542730101,151.0,0.00034371,31]
[404781248,1770542730395,151.0,0.0003526,31]
[404781249,1770542731557,151.0,0.00034371,31]
[404781250,1770542731836,151.0,0.0003526,31]
[404781261,1770542809676,5000.0068126,0.000162,5]
[404781262,1770542835443,500.0,0.00035342,30]
[404781263,1770542835649,500.0,0.00035397,30]
[404781264,1770542835769,607.44102237,0.00035452,30]
[404781265,1770542835875,500.0,0.00035342,30]
[404781266,1770542836045,500.0,0.00035397,30]
[404781267,1770542836094,500.0,0.00035342,30]
[404781268,1770542836155,422.0,0.00035342,30]
[404781269,1770542836205,500.0,0.00035452,30]
[404781270,1770542836254,524.0,0.00035342,30]
[404781271,1770542836300,500.0,0.00035397,30]
[404781272,1770542836346,422.0,0.00035397,30]
[404781273,1770542836391,500.0,0.00035506,30]
[404781274,1770542836436,524.0,0.00035397,30]
[404781275,1770542836480,500.0,0.00035452,30]
[404781276,1770542836529,422.0,0.00035452,30]
[404781277,1770542836580,500.0,0.00035561,30]
[404781278,1770542836642,524.0,0.00035452,30]
[404781279,1770542836686,500.0,0.00035506,30]
[404781280,1770542836732,422.0,0.00035506,30]
[404781281,1770542836775,500.0,0.00035616,30]
[404781282,1770542836817,524.0,0.00035506,30]
[404781283,1770542836871,500.0,0.00035561,30]
[404781284,1770542836930,500.0,0.00035616,30]
[404781285,1770542836974,524.0,0.00035561,30]
[404781286,1770542837020,586.0,0.00035342,30]
[404781287,1770542837115,422.0,0.00035561,30]
[404781288,1770542837181,586.0,0.00035397,30]
[404781289,1770542837235,524.0,0.00035616,30]
[404781290,1770542837278,422.0,0.00035616,30]
[404781291,1770542837501,586.0,0.00035452,30]
[404781292,1770542837664,586.0,0.00035506,30]
[404781293,1770542837814,586.0,0.00035561,30]
[404781294,1770542837990,586.0,0.00035616,30]
[404781295,1770542848020,466.544955,0.0003526,31]
[404781296,1770542849768,466.544955,0.0003526,31]
[404781297,1770542851267,466.544955,0.0003526,31]
[404781298,1770542852689,466.544955,0.0003526,31]
[404781299,1770542853890,371.222303,0.0003526,31]
[404781300,1770542855341,371.222303,0.0003526,31]
[404781301,1770542856770,371.222303,0.0003526,31]
[404781302,1770542858263,371.222303,0.0003526,31]
[404781303,1770542883231,200.0,0.0001634,2]
[404781304,1770542901381,200.14989585,0.00019082,2]
[404781318,1770542912165,500.0,0.00028047,30]
[404781319,1770542912419,500.0,0.00028047,30]
[404781320,1770542912688,402.66175926,0.00028047,30]
[404781362,1770542945201,-351.49849442,0.00024463,2]
[404781363,1770542947021,151.0,0.000349,31]
[404781364,1770542947334,151.0,0.0003526,31]
[404781365,1770542948196,151.0,0.000349,31]
[404781366,1770542948510,151.0,0.0003526,31]
[404781367,1770542948694,351.971829,0.000349,31]
[404781368,1770542949000,351.971829,0.0003526,31]
[404781386,1770542950157,351.971829,0.000349,31]
[404781387,1770542950462,351.971829,0.0003526,31]
[404781388,1770542951677,351.971829,0.000349,31]
[404781389,1770542952138,351.971829,0.0003526,31]
[404781390,1770542953123,351.971829,0.000349,31]
[404781391,1770542953423,351.971829,0.0003526,31]
[404781394,1770542979058,151.0,0.00034904,31]
[404781395,1770543009992,964.011817,0.00034904,31]
[404781396,1770543010280,964.011817,0.0003526,31]
[404781397,1770543011554,964.011817,0.00034904,31]
[404781398,1770543011832,964.011817,0.0003526,31]
[404781399,1770543013053,964.011817,0.00034904,31]
[404781400,1770543013356,964.011817,0.0003526,31]
[404781401,1770543014584,964.011817,0.00034904,31]
[404781402,1770543014864,964.011817,0.0003526,31]
[404781404,1770543027219,151.0,0.00034904,31]
[404781411,1770543032162,-178.94,0.00024463,2]
[404781413,1770543032171,-1593.97150558,0.00024463,2]
[404781414,1770543032182,-2696.49,0.00026851,2]
[404781416,1770543032191,-1000.0,0.00027046,2]
[404781417,1770543032201,-600.0,0.00027231,2]
[404781419,1770543032211,-600.0,0.00027231,2]
[404781420,1770543032220,-155.45,0.00027231,2]
[404781421,1770543032229,-246.478,0.00027389,16]
[404781422,1770543032239,-166.55586086,0.00027411,2]
[404781423,1770543032249,-1548.80988378,0.00027411,2]
[404781424,1770543032261,-745.6569597,0.00027411,2]
[404781425,1770543032309,-4001.50583,0.00027411,2]
[404781426,1770543032329,-2815.94946393,0.00027411,2]
[404781427,1770543032340,-2354.36428354,0.00027411,2]
[404781428,1770543032351,-454.55387908,0.00027411,2]
[404781429,1770543032363,-451.0,0.00027411,2]
[404781430,1770543032384,-3530.7,0.00027411,2]
[404781431,1770543032397,-8513.29893673,0.00027411,2]
[404781432,1770543032412,-751.72228898,0.00027411,2]
[404781435,1770543038486,-7421.87952136,0.00027411,2]
[404781436,1770543038496,-989.12364835,0.00027411,2]
[404781437,1770543038505,-500.0,0.000275,10]
[404781438,1770543038514,-238.24097718,0.000275,2]
[404781439,1770543038523,-151.0,0.00027507,7]
[404781440,1770543038532,-300.0,0.00027509,2]
[404781441,1770543038541,-300.0,0.00027509,2]
[404781442,1770543038551,-884.0,0.00027509,2]
[404781443,1770543038560,-500.0,0.00027509,2]
[404781444,1770543038569,-500.0,0.00027509,2]
[404781445,1770543038579,-500.0,0.00027509,2]
[404781446,1770543038589,-785833.08638651,0.0002751,2]
[404781447,1770543038605,-680.50293505,0.0002751,2]
[404781491,1770543040643,-761.832,0.0002751,2]
[404781492,1770543040700,-5176.03152716,0.0002751,2]
[404781507,1770543043960,-936.409318,0.0002751,2]
[404781512,1770543044015,-553.09022308,0.0002751,2]
[404781513,1770543044811,-5858.51232533,0.0002751,2]
[404781514,1770543044823,-1030.1308482,0.0002751,2]
[404781515,1770543044835,-1554.87227009,0.0002751,2]
[404781516,1770543044846,-621.87460841,0.0002751,2]
[404781517,1770543044857,-1494.489,0.0002751,2]
[404781518,1770543044867,-1161.0,0.0002751,2]
[404781519,1770543046237,-3524.15,0.0002751,2]
[404781522,1770543046484,-47761.94399393,0.0002751,2]
[404781524,1770543051267,557.39,0.00026896,120]
[404781525,1770543051454,557.39,0.00030258,120]
[404781526,1770543051665,557.39,0.0003362,120]
[404781527,1770543060500,844.182,0.00028148,120]
[404781528,1770543061861,1000.0,0.00028148,30]
[404781529,1770543062441,1000.0,0.00028148,90]
[404781530,1770543062775,1000.0,0.00028148,90]
[404781531,1770543063027,1000.0,0.00028148,90]
[404781532,1770543063309,1000.0,0.00028148,90]
[404781533,1770543063598,1000.0,0.00028148,90]
[404781534,1770543063883,1000.0,0.00028148,90]
[404781535,1770543064164,1000.0,0.00028148,90]
[404781536,1770543064462,1000.0,0.00028148,90]
[404781537,1770543064770,1000.0,0.00028148,90]
[404781538,1770543065229,1000.0,0.00028148,90]
[404781539,1770543065337,1000.0,0.00028148,90]
[404781540,1770543065659,1000.0,0.00028148,90]
[404781541,1770543065942,1000.0,0.00028148,90]
[404781542,1770543066366,1000.0,0.00028148,90]
[404781543,1770543066646,1000.0,0.00028148,90]
[404781544,1770543066911,597.62,0.00028148,90]
[404781545,1770543067480,1500.0,0.00028148,120]
[404781546,1770543067764,1500.0,0.00028148,120]
[404781547,1770543068219,1500.0,0.00028148,120]
[404781548,1770543068507,1500.0,0.00028148,120]
[404781549,1770543069150,1500.0,0.00028148,120]
[404781550,1770543069440,1500.0,0.00028148,120]
[404781551,1770543069744,1500.0,0.00028148,120]
[404781552,1770543070020,1500.0,0.00028148,120]
[404781553,1770543070326,565.602,0.00028148,120]
[404781555,1770543077650,150.0,0.00035342,30]
[404781556,1770543078321,150.0,0.00035342,30]
[404781557,1770543078653,193.48328548,0.00035397,30]
[404781558,1770543078696,500.0,0.00035342,30]
[404781559,1770543078746,500.0,0.00035342,30]
[404781560,1770543078802,500.0,0.00035397,30]
[404781561,1770543078851,500.0,0.00035342,30]
[404781562,1770543078895,500.0,0.00035397,30]
[404781563,1770543078940,500.0,0.00035452,30]
[404781564,1770543078985,500.0,0.00035397,30]
[404781565,1770543079031,547.0,0.00035342,30]
[404781566,1770543079081,500.0,0.00035452,30]
[404781567,1770543079129,500.0,0.00035506,30]
[404781568,1770543079184,500.0,0.00035452,30]
[404781569,1770543079230,547.0,0.00035397,30]
[404781570,1770543079275,246.89022842,0.00035506,30]
[404781571,1770543079329,500.0,0.00035561,30]
[404781572,1770543079372,500.0,0.00035506,30]
[404781573,1770543079415,547.0,0.00035452,30]
[404781574,1770543079461,500.0,0.00035616,30]
[404781575,1770543079502,547.0,0.00035506,30]
[404781576,1770543079562,500.0,0.00035561,30]
[404781577,1770543079602,547.0,0.00035561,30]
[404781578,1770543079806,547.0,0.00035616,30]
[404781579,1770543079847,500.0,0.00035616,30]
[404781580,1770543080305,500.0,0.00035342,30]
[404781581,1770543080349,482.0,0.00035342,30]
[404781582,1770543080470,500.0,0.00035397,30]
[404781583,1770543080526,482.0,0.00035397,30]
[404781584,1770543080645,500.0,0.00035452,30]
[404781585,1770543080698,482.0,0.00035452,30]
[404781586,1770543080813,500.0,0.00035506,30]
[404781587,1770543080858,500.0,0.00035342,30]
[404781588,1770543080899,482.0,0.00035506,30]
[404781589,1770543080992,500.0,0.00035561,30]
[404781590,1770543081032,500.0,0.00035397,30]
[404781591,1770543081139,482.0,0.00035561,30]
[404781592,1770543081189,500.0,0.00035452,30]
[404781593,1770543081307,187.38563793,0.00035506,30]
[404781594,1770543081351,482.0,0.00035616,30]
[404781595,1770543081405,500.0,0.00035616,30]
[404781596,1770543086781,500.0,0.00035342,30]
[404781597,1770543086932,500.0,0.00035397,30]
[404781598,1770543087107,500.0,0.00035452,30]
[404781599,1770543087344,151.0,0.0003313,31]
[404781600,1770543087473,500.0,0.00035506,30]
[404781601,1770543087802,505.46772774,0.00035561,30]
[404781602,1770543087847,151.0,0.0003526,31]
[404781603,1770543093623,150.0,0.00035342,30]
[404781604,1770543093783,150.0,0.00035397,30]
[404781605,1770543093937,150.0,0.00035452,30]
[404781606,1770543094094,150.0,0.00035506,30]
[404781607,1770543094250,150.0,0.00035561,30]
[404781608,1770543094426,250.0,0.00035616,30]
[404781609,1770543095001,500.0,0.00035342,30]
[404781610,1770543095158,500.0,0.00035397,30]
[404781611,1770543095311,500.0,0.00035452,30]
[404781612,1770543095562,500.0,0.00035506,30]
[404781613,1770543095647,150.0,0.00035342,30]
[404781614,1770543095709,500.0,0.00035561,30]
[404781615,1770543095767,249.92684293,0.00035397,30]
[404781616,1770543095960,500.0,0.00035616,30]
[404781617,1770543128196,333.33333,0.0003385,47]
[404781618,1770543128248,333.33334,0.0003385,47]
[404781619,1770543128342,333.33333,0.0003385,47]
[404781620,1770543128398,333.33333,0.0003385,47]
[404781621,1770543128467,333.33334,0.0003405,50]
[404781622,1770543128510,333.33333,0.0003385,47]
[404781623,1770543143742,151.0,0.00035616,30]
[404781624,1770543144384,156.587,0.00035616,30]
[404781625,1770543144998,162.380719,0.00035616,30]
[404781626,1770543145640,168.3888056,0.00035616,30]
[404781627,1770543146330,174.61919141,0.00035616,30]
[404781628,1770543147371,181.08010149,0.00035616,30]
[404781629,1770543147634,728.401394,0.0003313,31]
[404781630,1770543147717,187.78006525,0.00035616,30]
[404781631,1770543147931,728.401394,0.00034904,31]
[404781632,1770543148330,194.72792766,0.00035616,30]
[404781633,1770543148965,201.93286099,0.00035616,30]
[404781634,1770543149162,728.401394,0.0003313,31]
[404781635,1770543149469,728.401394,0.00034904,31]
[404781636,1770543149570,209.40437684,0.00035616,30]
[404781637,1770543150201,217.15233878,0.00035616,30]
[404781638,1770543150829,225.18697532,0.00035616,30]
[404781639,1770543150873,373.235964,0.0003313,31]
[404781640,1770543150922,728.401394,0.0003313,31]
[404781641,1770543151154,373.235964,0.00034904,31]
[404781642,1770543151196,728.401394,0.00034904,31]
[404781643,1770543151476,233.51889341,0.00035616,30]
[404781644,1770543152094,242.15909246,0.00035616,30]
[404781645,1770543152370,728.401394,0.0003313,31]
[404781646,1770543152662,728.401386,0.00034904,31]
[404781647,1770543152711,251.11897888,0.00035616,30]
[404781648,1770543153152,373.235964,0.0003313,31]
[404781649,1770543153319,260.4103811,0.00035616,30]
[404781650,1770543153430,373.235964,0.00034904,31]
[404781651,1770543153937,270.0455652,0.00035616,30]
[404781652,1770543154549,280.03725112,0.00035616,30]
[404781653,1770543154593,373.235964,0.0003313,31]
[404781654,1770543154801,154.053951,0.0003313,31]
[404781655,1770543154851,373.235964,0.00034904,31]
[404781656,1770543155085,154.053951,0.00034904,31]
[404781657,1770543155170,290.39862941,0.00035616,30]
[404781658,1770543155785,301.1433787,0.00035616,30]
[404781659,1770543155999,373.235964,0.0003313,31]
[404781660,1770543156270,154.053951,0.0003313,31]